[Event "Late-Titled-Tuesday-Blitz-July-09-2024"]
[Site "Chess.com"]
[Date "2024.07.09"]
[Round "4"]
[White "Marcin"]
[Black "sari07"]
[Result "1-0"]
[WhiteElo "2637"]
[BlackElo "2390"]
[TimeControl "180+1"]
[EndTime "14:39:37 PDT"]
[Termination "Marcin won on time"]

1. e4 {[%clk 0:03:00.9]} 1... e5 {[%clk 0:02:59.2]} 2. Nf3 {[%clk 0:03:00.6]}
2... Nc6 {[%clk 0:02:59.6]} 3. d4 {[%clk 0:02:57.1]} 3... exd4 {[%clk
0:02:59.4]} 4. Nxd4 {[%clk 0:02:58]} 4... Nf6 {[%clk 0:02:54.4]} 5. Nc3 {[%clk
0:02:58]} 5... Bb4 {[%clk 0:02:53.1]} 6. Nxc6 {[%clk 0:02:58.2]} 6... bxc6
{[%clk 0:02:52.3]} 7. Bd3 {[%clk 0:02:58.6]} 7... d5 {[%clk 0:02:52.2]} 8. exd5
{[%clk 0:02:59]} 8... O-O {[%clk 0:02:52.6]} 9. O-O {[%clk 0:02:58.6]} 9... Bg4
{[%clk 0:02:53.1]} 10. f3 {[%clk 0:02:57.4]} 10... Bh5 {[%clk 0:02:51]} 11. Bg5
{[%clk 0:02:44.9]} 11... cxd5 {[%clk 0:02:37.9]} 12. Kh1 {[%clk 0:02:41.6]}
12... c6 {[%clk 0:02:24.5]} 13. Ne2 {[%clk 0:02:38.2]} 13... h6 {[%clk
0:02:14.6]} 14. Bh4 {[%clk 0:02:31.8]} 14... Bg6 {[%clk 0:02:07.8]} 15. Bxg6
{[%clk 0:02:25.1]} 15... fxg6 {[%clk 0:02:08.7]} 16. Qd3 {[%clk 0:02:25.3]}
16... g5 {[%clk 0:01:55.9]} 17. Bf2 {[%clk 0:02:23.7]} 17... Ba5 {[%clk
0:01:29.2]} 18. Nd4 {[%clk 0:02:20.8]} 18... Qd7 {[%clk 0:01:28.3]} 19. Nb3
{[%clk 0:02:14.8]} 19... Bb6 {[%clk 0:01:27.5]} 20. Bc5 {[%clk 0:02:14.4]} 20...
Rfe8 {[%clk 0:01:24.6]} 21. a4 {[%clk 0:02:13.3]} 21... Bxc5 {[%clk 0:01:15.1]}
22. Nxc5 {[%clk 0:02:13.5]} 22... Qd6 {[%clk 0:01:15.7]} 23. b4 {[%clk
0:02:09.8]} 23... Re7 {[%clk 0:01:14.7]} 24. Rfe1 {[%clk 0:02:02.7]} 24... Rae8
{[%clk 0:01:13.4]} 25. Rxe7 {[%clk 0:02:02.3]} 25... Qxe7 {[%clk 0:01:13.5]} 26.
Qd4 {[%clk 0:01:52.9]} 26... Nh5 {[%clk 0:01:06.5]} 27. Nd3 {[%clk 0:01:48.3]}
27... Nf4 {[%clk 0:01:00.1]} 28. Nxf4 {[%clk 0:01:36.4]} 28... gxf4 {[%clk
0:01:01]} 29. h3 {[%clk 0:01:36]} 29... Qe2 {[%clk 0:00:40.6]} 30. Qxf4 {[%clk
0:01:25.1]} 30... Qxc2 {[%clk 0:00:40.5]} 31. b5 {[%clk 0:01:21.2]} 31... Qc3
{[%clk 0:00:33.3]} 32. Rc1 {[%clk 0:01:12.8]} 32... Re1+ {[%clk 0:00:32.5]} 33.
Rxe1 {[%clk 0:01:12.9]} 33... Qxe1+ {[%clk 0:00:33.4]} 34. Kh2 {[%clk
0:01:13.7]} 34... cxb5 {[%clk 0:00:33.8]} 35. axb5 {[%clk 0:01:14.2]} 35... Qc3
{[%clk 0:00:17.8]} 36. Qb8+ {[%clk 0:01:09.2]} 36... Kh7 {[%clk 0:00:17.9]} 37.
Qxa7 {[%clk 0:01:08.7]} 37... Qe5+ {[%clk 0:00:17.9]} 38. Kh1 {[%clk 0:01:06.3]}
38... d4 {[%clk 0:00:17.7]} 39. Qa1 {[%clk 0:00:57]} 39... Qxb5 {[%clk
0:00:13.6]} 40. Qxd4 {[%clk 0:00:56.7]} 40... Qb1+ {[%clk 0:00:14.1]} 41. Kh2
{[%clk 0:00:56.6]} 41... Qb8+ {[%clk 0:00:14.7]} 42. Kh1 {[%clk 0:00:54.4]}
42... Qb1+ {[%clk 0:00:14.4]} 43. Qg1 {[%clk 0:00:55.1]} 43... Qb5 {[%clk
0:00:13.6]} 44. Qe1 {[%clk 0:00:53]} 44... Qb6 {[%clk 0:00:11.4]} 45. Qe4+
{[%clk 0:00:47.4]} 45... Kh8 {[%clk 0:00:11.5]} 46. f4 {[%clk 0:00:47.9]} 46...
Qc7 {[%clk 0:00:09.5]} 47. Kh2 {[%clk 0:00:46.7]} 47... Qb6 {[%clk 0:00:09.8]}
48. Kg3 {[%clk 0:00:44.9]} 48... Qb3+ {[%clk 0:00:09.9]} 49. Kg4 {[%clk
0:00:44.5]} 49... Qb6 {[%clk 0:00:10.4]} 50. g3 {[%clk 0:00:41.8]} 50... Qb8
{[%clk 0:00:09.5]} 51. Qe5 {[%clk 0:00:40.8]} 51... Qc8+ {[%clk 0:00:09.3]} 52.
f5 {[%clk 0:00:41.1]} 52... Qc4+ {[%clk 0:00:09]} 53. Kh5 {[%clk 0:00:40]} 53...
Qf7+ {[%clk 0:00:09.5]} 54. Kh4 {[%clk 0:00:38.3]} 54... Qc4+ {[%clk 0:00:10.1]}
55. g4 {[%clk 0:00:37.9]} 55... Qc6 {[%clk 0:00:05.4]} 56. Kh5 {[%clk
0:00:30.9]} 56... Qf3 {[%clk 0:00:02.8]} 57. Kg6 {[%clk 0:00:27.9]} 57... Qc6+
{[%clk 0:00:03.1]} 58. Qe6 {[%clk 0:00:27.5]} 1-0

[Event "Late-Titled-Tuesday-Blitz-July-09-2024"]
[Site "Chess.com"]
[Date "2024.07.09"]
[Round "4"]
[White "baki83"]
[Black "tptagain"]
[Result "0-1"]
[WhiteElo "2826"]
[BlackElo "3047"]
[TimeControl "180+1"]
[EndTime "14:39:38 PDT"]
[Termination "tptagain won on time"]

1. e4 {[%clk 0:03:00.9]} 1... c6 {[%clk 0:02:59.8]} 2. d4 {[%clk 0:03:00.1]}
2... d5 {[%clk 0:03:00.3]} 3. e5 {[%clk 0:03:00.6]} 3... Bf5 {[%clk 0:03:00.1]}
4. h4 {[%clk 0:03:00.2]} 4... h6 {[%clk 0:02:59.8]} 5. g4 {[%clk 0:02:56.1]}
5... Be4 {[%clk 0:02:59.7]} 6. f3 {[%clk 0:02:56]} 6... Bh7 {[%clk 0:02:59.3]}
7. Bd3 {[%clk 0:02:56.4]} 7... Bxd3 {[%clk 0:02:58.4]} 8. Qxd3 {[%clk
0:02:56.3]} 8... e6 {[%clk 0:02:58.6]} 9. c3 {[%clk 0:02:53.7]} 9... h5 {[%clk
0:02:55.4]} 10. Be3 {[%clk 0:02:35.5]} 10... hxg4 {[%clk 0:02:50.3]} 11. h5
{[%clk 0:02:30.3]} 11... g3 {[%clk 0:02:34]} 12. Nd2 {[%clk 0:02:29.2]} 12...
Ne7 {[%clk 0:02:33.6]} 13. Bg5 {[%clk 0:02:22.4]} 13... Qb6 {[%clk 0:02:33.3]}
14. Bxe7 {[%clk 0:02:09.7]} 14... Bxe7 {[%clk 0:02:32.8]} 15. f4 {[%clk
0:02:09.8]} 15... g2 {[%clk 0:02:26.3]} 16. Rh2 {[%clk 0:02:09.3]} 16... c5
{[%clk 0:02:01.8]} 17. Rxg2 {[%clk 0:01:52.7]} 17... cxd4 {[%clk 0:02:02]} 18.
cxd4 {[%clk 0:01:51.4]} 18... Nc6 {[%clk 0:02:02]} 19. Ngf3 {[%clk 0:01:47.7]}
19... Kf8 {[%clk 0:01:48.9]} 20. Kf2 {[%clk 0:01:29]} 20... Nb4 {[%clk 0:01:23]}
21. Qc3 {[%clk 0:01:01.1]} 21... Rxh5 {[%clk 0:01:22.5]} 22. f5 {[%clk
0:00:56.1]} 22... exf5 {[%clk 0:01:09.9]} 23. Rag1 {[%clk 0:00:47.6]} 23... g6
{[%clk 0:01:09.6]} 24. a3 {[%clk 0:00:47.2]} 24... Nc6 {[%clk 0:01:08]} 25. e6
{[%clk 0:00:47.6]} 25... Bf6 {[%clk 0:01:02.2]} 26. Nb3 {[%clk 0:00:47.7]} 26...
Ne7 {[%clk 0:00:42.9]} 27. Nc5 {[%clk 0:00:44.2]} 27... Rd8 {[%clk 0:00:23.5]}
28. Nd7+ {[%clk 0:00:26.7]} 28... Rxd7 {[%clk 0:00:23.7]} 29. exd7 {[%clk
0:00:27.4]} 29... Qd8 {[%clk 0:00:24.1]} 30. Ne5 {[%clk 0:00:14.8]} 30... Bxe5
{[%clk 0:00:24.1]} 31. dxe5 {[%clk 0:00:14.3]} 31... Qxd7 {[%clk 0:00:24.5]} 32.
e6 {[%clk 0:00:13.4]} 32... Qxe6 {[%clk 0:00:24.9]} 33. Re1 {[%clk 0:00:13.7]}
33... Qb6+ {[%clk 0:00:25.1]} 34. Ke2 {[%clk 0:00:08.2]} 34... Nc6 {[%clk
0:00:20.5]} 35. Kd1 {[%clk 0:00:03.4]} 35... Qd4+ {[%clk 0:00:20.3]} 36. Qxd4
{[%clk 0:00:03.1]} 36... Nxd4 {[%clk 0:00:21.2]} 37. Re5 {[%clk 0:00:02.9]}
37... Rh1+ {[%clk 0:00:20.1]} 38. Re1 {[%clk 0:00:01.6]} 38... Rxe1+ {[%clk
0:00:20.2]} 39. Kxe1 {[%clk 0:00:02.5]} 39... f4 {[%clk 0:00:20.3]} 40. Kf1
{[%clk 0:00:02.8]} 40... Ne6 {[%clk 0:00:20.3]} 41. Rd2 {[%clk 0:00:03.1]} 41...
d4 {[%clk 0:00:20.4]} 42. Kf2 {[%clk 0:00:03.7]} 42... g5 {[%clk 0:00:20.5]} 43.
Rc2 {[%clk 0:00:04.3]} 43... g4 {[%clk 0:00:20.4]} 44. Rc8+ {[%clk 0:00:03.2]}
44... Ke7 {[%clk 0:00:20.7]} 45. Rb8 {[%clk 0:00:03.9]} 45... g3+ {[%clk
0:00:19.7]} 46. Kf3 {[%clk 0:00:03.9]} 46... Ng5+ {[%clk 0:00:19.4]} 47. Kg2
{[%clk 0:00:03.2]} 47... d3 {[%clk 0:00:20]} 48. Rxb7+ {[%clk 0:00:03.1]} 48...
Ke6 {[%clk 0:00:20.4]} 49. Rb3 {[%clk 0:00:02.9]} 49... d2 {[%clk 0:00:20.3]}
50. Rd3 {[%clk 0:00:03.1]} 50... Ne4 {[%clk 0:00:20.8]} 51. Kf3 {[%clk
0:00:02.7]} 51... Ke5 {[%clk 0:00:20.5]} 52. Rd8 {[%clk 0:00:01.9]} 52... Nd6
{[%clk 0:00:20.3]} 53. Ke2 {[%clk 0:00:01.5]} 53... f3+ {[%clk 0:00:19.3]} 54.
Kxd2 {[%clk 0:00:01.6]} 54... g2 {[%clk 0:00:19.6]} 55. Rg8 {[%clk 0:00:01.4]}
55... f2 {[%clk 0:00:20]} 56. Rg5+ {[%clk 0:00:02]} 56... Nf5 {[%clk 0:00:19.6]}
0-1

[Event "Late-Titled-Tuesday-Blitz-July-09-2024"]
[Site "Chess.com"]
[Date "2024.07.09"]
[Round "4"]
[White "XDPS"]
[Black "FabianoCaruana"]
[Result "1-0"]
[WhiteElo "2893"]
[BlackElo "3171"]
[TimeControl "180+1"]
[EndTime "14:39:40 PDT"]
[Termination "XDPS won by resignation"]

1. e4 {[%clk 0:03:00.9]} 1... c5 {[%clk 0:02:59.1]} 2. Nf3 {[%clk 0:03:00.7]}
2... Nc6 {[%clk 0:02:59.6]} 3. Bb5 {[%clk 0:02:59]} 3... Nf6 {[%clk 0:02:59.4]}
4. Bxc6 {[%clk 0:02:58.2]} 4... dxc6 {[%clk 0:03:00.3]} 5. d3 {[%clk 0:02:58.5]}
5... Qc7 {[%clk 0:02:59.5]} 6. a4 {[%clk 0:02:56.7]} 6... e5 {[%clk 0:02:58.9]}
7. Na3 {[%clk 0:02:55.7]} 7... g6 {[%clk 0:02:52.7]} 8. Nc4 {[%clk 0:02:54.2]}
8... Nd7 {[%clk 0:02:52.6]} 9. b3 {[%clk 0:02:45.8]} 9... Bg7 {[%clk 0:02:51.5]}
10. Bb2 {[%clk 0:02:46.3]} 10... f6 {[%clk 0:02:50.7]} 11. O-O {[%clk 0:02:44]}
11... Nf8 {[%clk 0:02:48.9]} 12. c3 {[%clk 0:02:32.9]} 12... Be6 {[%clk
0:02:33.8]} 13. Qe2 {[%clk 0:02:32.8]} 13... g5 {[%clk 0:02:16.7]} 14. d4 {[%clk
0:02:30.3]} 14... Ng6 {[%clk 0:02:09.6]} 15. Rfd1 {[%clk 0:02:19.2]} 15... O-O
{[%clk 0:01:39.1]} 16. dxc5 {[%clk 0:02:17.6]} 16... Nf4 {[%clk 0:01:34.2]} 17.
Qf1 {[%clk 0:02:15.3]} 17... Qf7 {[%clk 0:01:18]} 18. Nfd2 {[%clk 0:01:53.7]}
18... Qh5 {[%clk 0:01:11]} 19. Ne3 {[%clk 0:01:49.1]} 19... Qg6 {[%clk
0:00:48.1]} 20. f3 {[%clk 0:01:26.8]} 20... h5 {[%clk 0:00:47.2]} 21. Ndc4
{[%clk 0:01:24.4]} 21... g4 {[%clk 0:00:47.5]} 22. Rd6 {[%clk 0:01:12.4]} 22...
Bh6 {[%clk 0:00:35.1]} 23. Rad1 {[%clk 0:00:43]} 23... gxf3 {[%clk 0:00:34.8]}
24. Qxf3 {[%clk 0:00:43]} 24... Bg4 {[%clk 0:00:35.2]} 25. Nxg4 {[%clk
0:00:38.4]} 25... hxg4 {[%clk 0:00:36.1]} 26. Qf1 {[%clk 0:00:37.9]} 26... Qxe4
{[%clk 0:00:36.1]} 27. Kh1 {[%clk 0:00:33.6]} 27... Bg5 {[%clk 0:00:31.9]} 28.
Rd7 {[%clk 0:00:32.2]} 28... Rab8 {[%clk 0:00:26.1]} 29. Bc1 {[%clk 0:00:31.7]}
29... Qg6 {[%clk 0:00:22.2]} 30. Nd6 {[%clk 0:00:30.2]} 30... g3 {[%clk
0:00:17.8]} 31. Bxf4 {[%clk 0:00:27.2]} 31... exf4 {[%clk 0:00:11.3]} 32. Qc4+
{[%clk 0:00:27]} 32... Kh8 {[%clk 0:00:11.7]} 33. Nf7+ {[%clk 0:00:25.8]} 33...
Rxf7 {[%clk 0:00:10.9]} 34. Qxf7 {[%clk 0:00:26.7]} 34... Qxf7 {[%clk
0:00:09.4]} 35. Rxf7 {[%clk 0:00:26.6]} 35... Re8 {[%clk 0:00:08.8]} 36. hxg3
{[%clk 0:00:25.1]} 36... fxg3 {[%clk 0:00:09]} 37. Rxb7 {[%clk 0:00:23.7]} 37...
f5 {[%clk 0:00:05.2]} 38. b4 {[%clk 0:00:14.6]} 38... Re4 {[%clk 0:00:05.2]} 39.
Kg1 {[%clk 0:00:14.5]} 39... Re2 {[%clk 0:00:02.4]} 40. Rbd7 {[%clk 0:00:10.4]}
40... Rc2 {[%clk 0:00:02.1]} 41. R7d3 {[%clk 0:00:10.1]} 41... Kg7 {[%clk
0:00:01.5]} 42. Rxg3 {[%clk 0:00:09.6]} 42... Kh6 {[%clk 0:00:02]} 43. b5 {[%clk
0:00:10]} 43... Bf4 {[%clk 0:00:01]} 44. Rf3 {[%clk 0:00:09.9]} 44... Kg5 {[%clk
0:00:01.5]} 45. bxc6 {[%clk 0:00:09.8]} 45... Be5 {[%clk 0:00:01.2]} 46. Rd5
{[%clk 0:00:08.8]} 46... Bxc3 {[%clk 0:00:01.3]} 47. Rdxf5+ {[%clk 0:00:08]}
47... Kg4 {[%clk 0:00:01]} 48. R5f4+ {[%clk 0:00:08.4]} 48... Kg5 {[%clk
0:00:01.2]} 49. c7 {[%clk 0:00:08.9]} 49... Rc1+ {[%clk 0:00:01.2]} 50. Rf1
{[%clk 0:00:09.1]} 1-0

[Event "Late-Titled-Tuesday-Blitz-July-09-2024"]
[Site "Chess.com"]
[Date "2024.07.09"]
[Round "4"]
[White "Noki102"]
[Black "Adar_07"]
[Result "1-0"]
[WhiteElo "2566"]
[BlackElo "2728"]
[TimeControl "180+1"]
[EndTime "14:39:41 PDT"]
[Termination "Noki102 won by resignation"]

1. Nc3 {[%clk 0:03:00.9]} 1... c5 {[%clk 0:02:57.8]} 2. e4 {[%clk 0:03:00.7]}
2... g6 {[%clk 0:02:57.8]} 3. Bc4 {[%clk 0:03:00.6]} 3... Nc6 {[%clk 0:02:57.6]}
4. d3 {[%clk 0:03:00.6]} 4... a6 {[%clk 0:02:57.7]} 5. a4 {[%clk 0:03:00.2]}
5... Bg7 {[%clk 0:02:58.1]} 6. Nge2 {[%clk 0:02:59.9]} 6... e6 {[%clk
0:02:56.6]} 7. O-O {[%clk 0:03:00]} 7... Nge7 {[%clk 0:02:57.2]} 8. Bg5 {[%clk
0:02:57.8]} 8... h6 {[%clk 0:02:56.7]} 9. Bh4 {[%clk 0:02:56.8]} 9... g5 {[%clk
0:02:56.7]} 10. Bg3 {[%clk 0:02:56.9]} 10... d5 {[%clk 0:02:57.1]} 11. Ba2
{[%clk 0:02:55.8]} 11... O-O {[%clk 0:02:54]} 12. f4 {[%clk 0:02:49.6]} 12... f5
{[%clk 0:02:27.3]} 13. fxg5 {[%clk 0:02:00.5]} 13... hxg5 {[%clk 0:02:28.2]} 14.
exd5 {[%clk 0:02:00.5]} 14... exd5 {[%clk 0:02:29.1]} 15. Bf2 {[%clk 0:02:00.1]}
15... b6 {[%clk 0:02:25.9]} 16. Ng3 {[%clk 0:01:54]} 16... f4 {[%clk 0:02:22.5]}
17. Nh5 {[%clk 0:01:47.2]} 17... Bxc3 {[%clk 0:02:06.9]} 18. bxc3 {[%clk
0:01:45.8]} 18... Qd6 {[%clk 0:02:07.5]} 19. Rb1 {[%clk 0:01:18.1]} 19... Rb8
{[%clk 0:02:01.4]} 20. Re1 {[%clk 0:01:05.7]} 20... Qg6 {[%clk 0:01:53.8]} 21.
Bxc5 {[%clk 0:00:57.6]} 21... bxc5 {[%clk 0:01:39.2]} 22. Rxb8 {[%clk
0:00:57.5]} 22... f3 {[%clk 0:01:39.3]} 23. Rxe7 {[%clk 0:00:40]} 23... Nxe7
{[%clk 0:01:31.8]} 24. Ng3 {[%clk 0:00:33.6]} 24... f2+ {[%clk 0:01:22.3]} 25.
Kf1 {[%clk 0:00:33.5]} 25... Kg7 {[%clk 0:00:56.3]} 26. Qe2 {[%clk 0:00:33.1]}
26... Rf7 {[%clk 0:00:51.2]} 27. Qe5+ {[%clk 0:00:31.5]} 27... Kh7 {[%clk
0:00:46.7]} 28. Bxd5 {[%clk 0:00:24.8]} 28... Nxd5 {[%clk 0:00:35.5]} 29. Rxc8
{[%clk 0:00:24.6]} 29... Nf6 {[%clk 0:00:25.9]} 30. Rxc5 {[%clk 0:00:13.8]}
30... Ng4 {[%clk 0:00:24.2]} 31. Qe4 {[%clk 0:00:04.6]} 31... Nxh2+ {[%clk
0:00:19.2]} 32. Ke2 {[%clk 0:00:05]} 32... Qxe4+ {[%clk 0:00:15.6]} 33. dxe4
{[%clk 0:00:04.7]} 33... f1=Q+ {[%clk 0:00:15.5]} 34. Nxf1 {[%clk 0:00:05.2]}
34... Rxf1 {[%clk 0:00:12.4]} 35. Rxg5 {[%clk 0:00:05.4]} 35... Kh6 {[%clk
0:00:09.7]} 36. Rg3 {[%clk 0:00:05.7]} 36... Rh1 {[%clk 0:00:09.1]} 37. Rh3+
{[%clk 0:00:05.7]} 37... Kg5 {[%clk 0:00:09.4]} 38. e5 {[%clk 0:00:04.3]} 38...
Kf5 {[%clk 0:00:09.9]} 39. c4 {[%clk 0:00:02.5]} 39... Kxe5 {[%clk 0:00:09.9]}
40. c5 {[%clk 0:00:01.5]} 40... Kd5 {[%clk 0:00:10.3]} 41. Rh5+ {[%clk
0:00:02.1]} 41... Kc6 {[%clk 0:00:10.4]} 42. c3 {[%clk 0:00:02.1]} 42... a5
{[%clk 0:00:09.5]} 43. c4 {[%clk 0:00:02.2]} 43... Nf1 {[%clk 0:00:07.5]} 44.
Rxh1 {[%clk 0:00:01.5]} 44... Ng3+ {[%clk 0:00:08.2]} 45. Kf3 {[%clk 0:00:02.4]}
45... Nxh1 {[%clk 0:00:09]} 46. g4 {[%clk 0:00:03.2]} 46... Kxc5 {[%clk
0:00:09.2]} 47. Kg2 {[%clk 0:00:03.8]} 47... Kxc4 {[%clk 0:00:09.3]} 48. Kxh1
{[%clk 0:00:03.3]} 48... Kb4 {[%clk 0:00:09.6]} 49. g5 {[%clk 0:00:03.7]} 49...
Kxa4 {[%clk 0:00:10.5]} 50. g6 {[%clk 0:00:04.6]} 50... Kb4 {[%clk 0:00:10.7]}
51. g7 {[%clk 0:00:05.5]} 51... a4 {[%clk 0:00:11.4]} 52. g8=Q {[%clk
0:00:06.4]} 52... Ka3 {[%clk 0:00:11.9]} 53. Qg1 {[%clk 0:00:06.1]} 53... Ka2
{[%clk 0:00:11.9]} 54. Qf2+ {[%clk 0:00:06.6]} 54... Ka1 {[%clk 0:00:12.1]} 55.
Qe1+ {[%clk 0:00:07]} 55... Ka2 {[%clk 0:00:12.2]} 56. Qd2+ {[%clk 0:00:07.6]}
56... Kb3 {[%clk 0:00:12]} 57. Qd1+ {[%clk 0:00:07.4]} 57... Kb2 {[%clk
0:00:12.4]} 58. Qxa4 {[%clk 0:00:07.4]} 1-0

[Event "Late-Titled-Tuesday-Blitz-July-09-2024"]
[Site "Chess.com"]
[Date "2024.07.09"]
[Round "4"]
[White "RebecaJimnz"]
[Black "ural58"]
[Result "0-1"]
[WhiteElo "2294"]
[BlackElo "2461"]
[TimeControl "180+1"]
[EndTime "14:39:41 PDT"]
[Termination "ural58 won on time"]

1. e4 {[%clk 0:03:00.9]} 1... d5 {[%clk 0:02:38.3]} 2. exd5 {[%clk 0:03:00.8]}
2... Qxd5 {[%clk 0:02:35.7]} 3. Nc3 {[%clk 0:03:00.8]} 3... Qa5 {[%clk
0:02:35.3]} 4. d4 {[%clk 0:03:01]} 4... Nf6 {[%clk 0:02:35.2]} 5. Nf3 {[%clk
0:03:01.2]} 5... Nc6 {[%clk 0:02:34.5]} 6. Bd2 {[%clk 0:02:59.3]} 6... a6 {[%clk
0:02:33.7]} 7. Bc4 {[%clk 0:02:55.9]} 7... Qh5 {[%clk 0:02:33]} 8. Ne5 {[%clk
0:02:37.5]} 8... Nxe5 {[%clk 0:02:29.5]} 9. Qxh5 {[%clk 0:02:36.7]} 9... Nd3+
{[%clk 0:02:29.4]} 10. Bxd3 {[%clk 0:02:32.8]} 10... Nxh5 {[%clk 0:02:30.3]} 11.
Nd5 {[%clk 0:02:22.8]} 11... Kd8 {[%clk 0:02:30.1]} 12. O-O-O {[%clk 0:02:15.1]}
12... Nf6 {[%clk 0:02:23.1]} 13. Nc3 {[%clk 0:01:50.2]} 13... e6 {[%clk
0:02:21.6]} 14. Bg5 {[%clk 0:01:44.6]} 14... Be7 {[%clk 0:02:21.4]} 15. Rhe1
{[%clk 0:01:33.9]} 15... Bd7 {[%clk 0:02:18.2]} 16. Bc4 {[%clk 0:01:11.2]} 16...
b5 {[%clk 0:02:08.6]} 17. Bb3 {[%clk 0:01:09.1]} 17... c6 {[%clk 0:02:08.6]} 18.
Bxf6 {[%clk 0:01:04.7]} 18... gxf6 {[%clk 0:02:07.2]} 19. Ne4 {[%clk 0:00:50.8]}
19... Kc7 {[%clk 0:02:07.1]} 20. Rd2 {[%clk 0:00:25.9]} 20... Rad8 {[%clk
0:02:04.9]} 21. c3 {[%clk 0:00:25.8]} 21... Bc8 {[%clk 0:02:04.5]} 22. f4 {[%clk
0:00:19.4]} 22... f5 {[%clk 0:01:53.7]} 23. Nc5 {[%clk 0:00:13.9]} 23... Bxc5
{[%clk 0:01:53.1]} 24. dxc5 {[%clk 0:00:14.8]} 24... Rxd2 {[%clk 0:01:53.1]} 25.
Kxd2 {[%clk 0:00:15.7]} 25... a5 {[%clk 0:01:43.9]} 26. Ke3 {[%clk 0:00:15.5]}
26... b4 {[%clk 0:01:42.3]} 27. cxb4 {[%clk 0:00:14.1]} 27... axb4 {[%clk
0:01:41.7]} 28. Rd1 {[%clk 0:00:13.8]} 28... Ba6 {[%clk 0:01:41.4]} 29. Rd4
{[%clk 0:00:13.1]} 29... Rb8 {[%clk 0:01:39.8]} 30. g3 {[%clk 0:00:13.2]} 30...
Bf1 {[%clk 0:01:39]} 31. Kf2 {[%clk 0:00:12.5]} 31... Bh3 {[%clk 0:01:34.6]} 32.
Ba4 {[%clk 0:00:11.5]} 32... Bg4 {[%clk 0:01:28.6]} 33. Rd6 {[%clk 0:00:11.3]}
33... Ra8 {[%clk 0:01:21.6]} 34. Rxc6+ {[%clk 0:00:10.9]} 34... Kb7 {[%clk
0:01:18.9]} 35. Rb6+ {[%clk 0:00:11.4]} 35... Kc7 {[%clk 0:01:19.5]} 36. Bb3
{[%clk 0:00:09]} 36... Rd8 {[%clk 0:01:13.6]} 37. Rxb4 {[%clk 0:00:06.5]} 37...
Rd2+ {[%clk 0:01:13.1]} 38. Kg1 {[%clk 0:00:06.9]} 38... Rxb2 {[%clk 0:01:12.8]}
39. Rd4 {[%clk 0:00:03.8]} 39... Bh3 {[%clk 0:01:11.4]} 40. Rd1 {[%clk
0:00:01.7]} 40... Rg2+ {[%clk 0:01:11.1]} 41. Kh1 {[%clk 0:00:02.1]} 41... Re2
{[%clk 0:01:04.3]} 42. Bc4 {[%clk 0:00:01.8]} 42... Rc2 {[%clk 0:01:01.8]} 43.
Bf1 {[%clk 0:00:01.6]} 43... Bg4 {[%clk 0:01:00.2]} 44. Ra1 {[%clk 0:00:01]}
44... Bf3+ {[%clk 0:00:58.4]} 45. Kg1 {[%clk 0:00:01]} 45... Kc6 {[%clk
0:00:50.8]} 46. a4 {[%clk 0:00:01.6]} 46... Kxc5 {[%clk 0:00:51.3]} 47. a5
{[%clk 0:00:02.2]} 47... Ba8 {[%clk 0:00:41.8]} 48. a6 {[%clk 0:00:02.5]} 48...
Kb6 {[%clk 0:00:41.1]} 49. a7 {[%clk 0:00:02.9]} 49... Rc7 {[%clk 0:00:39.3]}
50. Ra6+ {[%clk 0:00:02.6]} 50... Kc5 {[%clk 0:00:35.7]} 51. Ra5+ {[%clk
0:00:02.3]} 51... Kd6 {[%clk 0:00:35.5]} 52. Bg2 {[%clk 0:00:01.8]} 52... Rc1+
{[%clk 0:00:33.3]} 53. Bf1 {[%clk 0:00:02.1]} 53... Kc7 {[%clk 0:00:31.3]} 54.
Kf2 {[%clk 0:00:02.4]} 54... Kb6 {[%clk 0:00:28.1]} 55. Ra6+ {[%clk 0:00:01.7]}
55... Kc5 {[%clk 0:00:26.1]} 0-1

[Event "Late-Titled-Tuesday-Blitz-July-09-2024"]
[Site "Chess.com"]
[Date "2024.07.09"]
[Round "4"]
[White "Ash15K"]
[Black "ExchangeAB"]
[Result "1/2-1/2"]
[WhiteElo "2304"]
[BlackElo "2457"]
[TimeControl "180+1"]
[EndTime "14:39:43 PDT"]
[Termination "Game drawn by stalemate"]

1. e4 {[%clk 0:03:00.9]} 1... c6 {[%clk 0:02:54.1]} 2. Nc3 {[%clk 0:03:00.2]}
2... d5 {[%clk 0:02:55]} 3. Nf3 {[%clk 0:03:00.2]} 3... Bg4 {[%clk 0:02:40.6]}
4. h3 {[%clk 0:02:57]} 4... Bxf3 {[%clk 0:02:37]} 5. Qxf3 {[%clk 0:02:54.6]}
5... e6 {[%clk 0:02:37.9]} 6. d3 {[%clk 0:02:54.6]} 6... Nd7 {[%clk 0:02:18.1]}
7. Bd2 {[%clk 0:02:46.8]} 7... Bc5 {[%clk 0:02:17.3]} 8. O-O-O {[%clk 0:02:46]}
8... a5 {[%clk 0:02:17.2]} 9. a4 {[%clk 0:02:45.4]} 9... Qb6 {[%clk 0:02:16.6]}
10. exd5 {[%clk 0:02:43.1]} 10... cxd5 {[%clk 0:02:14.1]} 11. Nb5 {[%clk
0:02:29.5]} 11... Ngf6 {[%clk 0:02:12.9]} 12. d4 {[%clk 0:02:11.2]} 12... Be7
{[%clk 0:02:09.6]} 13. Bf4 {[%clk 0:02:08.8]} 13... O-O {[%clk 0:02:06.8]} 14.
g3 {[%clk 0:02:08.3]} 14... Rac8 {[%clk 0:02:04.9]} 15. g4 {[%clk 0:02:07.9]}
15... Ne8 {[%clk 0:02:03.4]} 16. g5 {[%clk 0:02:02.2]} 16... Nd6 {[%clk
0:01:56.5]} 17. Bxd6 {[%clk 0:02:01]} 17... Bxd6 {[%clk 0:01:56.4]} 18. h4
{[%clk 0:02:01.6]} 18... Bb8 {[%clk 0:01:34.4]} 19. h5 {[%clk 0:01:58.4]} 19...
Qc6 {[%clk 0:01:29.2]} 20. Bd3 {[%clk 0:01:53.9]} 20... e5 {[%clk 0:01:28.4]}
21. dxe5 {[%clk 0:00:51.1]} 21... Nxe5 {[%clk 0:01:26.8]} 22. Qf5 {[%clk
0:00:51.2]} 22... Nxd3+ {[%clk 0:01:25.7]} 23. Qxd3 {[%clk 0:00:51.7]} 23...
Bf4+ {[%clk 0:01:21.2]} 24. Kb1 {[%clk 0:00:51.6]} 24... Bxg5 {[%clk 0:01:19.5]}
25. Na7 {[%clk 0:00:47.3]} 25... Qxa4 {[%clk 0:01:11.6]} 26. Nxc8 {[%clk
0:00:45.5]} 26... Rxc8 {[%clk 0:01:12.5]} 27. Rhg1 {[%clk 0:00:40.2]} 27... h6
{[%clk 0:01:06.6]} 28. Qf5 {[%clk 0:00:34.6]} 28... Rc5 {[%clk 0:00:42]} 29.
Rxd5 {[%clk 0:00:29.7]} 29... Rxd5 {[%clk 0:00:36.8]} 30. Qxd5 {[%clk
0:00:29.5]} 30... Qb4 {[%clk 0:00:33.9]} 31. Qf5 {[%clk 0:00:10.2]} 31... a4
{[%clk 0:00:11.5]} 32. Rg4 {[%clk 0:00:07.1]} 32... Qe1+ {[%clk 0:00:09.6]} 33.
Ka2 {[%clk 0:00:07.2]} 33... b5 {[%clk 0:00:06.7]} 34. Qxb5 {[%clk 0:00:05]}
34... Qxf2 {[%clk 0:00:07.1]} 35. Rxa4 {[%clk 0:00:03.3]} 35... Qxc2 {[%clk
0:00:05.2]} 36. Ra8+ {[%clk 0:00:03.2]} 36... Kh7 {[%clk 0:00:05.3]} 37. Qb3
{[%clk 0:00:03.3]} 37... Qxb3+ {[%clk 0:00:02.5]} 38. Kxb3 {[%clk 0:00:02.9]}
38... g6 {[%clk 0:00:03.4]} 39. Ka4 {[%clk 0:00:03.4]} 39... gxh5 {[%clk
0:00:03.4]} 40. b4 {[%clk 0:00:03.8]} 40... h4 {[%clk 0:00:03.9]} 41. Rc8 {[%clk
0:00:03.9]} 41... h3 {[%clk 0:00:03.9]} 42. Rc2 {[%clk 0:00:03.9]} 42... Bf4
{[%clk 0:00:03.7]} 43. Rc1 {[%clk 0:00:04.6]} 43... h2 {[%clk 0:00:03.9]} 44.
Rh1 {[%clk 0:00:04.6]} 44... Kg6 {[%clk 0:00:04.3]} 45. b5 {[%clk 0:00:05.2]}
45... Kg5 {[%clk 0:00:04.9]} 46. b6 {[%clk 0:00:05.7]} 46... Kg4 {[%clk
0:00:05.4]} 47. Kb5 {[%clk 0:00:06.1]} 47... Kh3 {[%clk 0:00:05.8]} 48. Rg1
{[%clk 0:00:02.8]} 48... hxg1=Q {[%clk 0:00:05.2]} 49. Kc6 {[%clk 0:00:03.2]}
49... Qg3 {[%clk 0:00:04.2]} 50. Kb7 {[%clk 0:00:02.8]} 50... Bb8 {[%clk
0:00:05.1]} 51. Ka8 {[%clk 0:00:03.3]} 51... Kg4 {[%clk 0:00:05.2]} 52. b7
{[%clk 0:00:04.2]} 52... h5 {[%clk 0:00:06.1]} 1/2-1/2